bitfinex/quotes_SOLUSD_20250531
["timestamp","ask_amount","ask_price","bid_price","bid_amount"]
[1748676462631,145.9,154.81,154.8,25.10959718]
[1748676463220,145.9,154.81,154.79,6.46023988]
[1748676463422,145.9,154.81,154.79,25.10988874]
[1748676465050,145.9,154.81,154.79,18.64964886]
[1748676465624,11.75340625,154.8,154.78,18.64964886]
[1748676465950,157.65340625,154.81,154.78,18.64964886]
[1748676466743,145.9,154.81,154.78,18.64964886]
[1748676467133,145.9,154.81,154.78,25.11033251]
[1748676469064,145.9,154.81,154.78,36.86373876]
[1748676469439,145.9,154.81,154.79,11.89556782]
[1748676471054,145.9,154.81,154.79,6.60215213]
[1748676471430,152.35953928,154.81,154.77,10.04]
[1748676471630,11.75340625,154.8,154.77,10.04]
[1748676476855,164.11294553,154.81,154.77,10.04]
[1748676480137,157.65340625,154.81,154.77,10.04]
[1748676480670,164.11296089,154.81,154.77,10.04]
[1748676483040,11.75340625,154.8,154.75,46.88496931]
[1748676483240,4.634768,154.78,154.75,46.88496931]
[1748676483470,16.38817425,154.78,154.75,28.66964886]
[1748676483766,4.634768,154.78,154.75,40.42305511]
[1748676487483,4.634768,154.78,154.75,28.66964886]
[1748676492886,4.634768,154.78,154.75,46.88505511]
[1748676497173,4.634768,154.78,154.75,28.66964886]
[1748676497471,11.09556848,154.78,154.75,28.66964886]
[1748676498361,4.634768,154.78,154.75,28.66964886]
[1748676501311,4.634768,154.78,154.75,35.13150963]
[1748676501482,4.634768,154.78,154.75,46.88491588]
[1748676502317,11.09562479,154.78,154.7,6.46412411]
[1748676502482,11.75340625,154.76,154.71,40.44305511]
[1748676502896,157.65340625,154.77,154.73,18.64964886]
[1748676503599,164.11469461,154.77,154.73,18.64964886]
[1748676503797,164.11469461,154.77,154.69,34.46712314]
[1748676503798,11.75340625,154.74,154.65,117.3878851]
[1748676503989,11.75340625,154.73,154.69,18.64964886]
[1748676506382,18.21630511,154.73,154.69,18.64964886]
[1748676509129,11.75340625,154.73,154.69,25.11414306]
[1748676509623,18.21599194,154.74,154.69,36.86754931]
[1748676511825,157.65340625,154.73,154.68,6.46495423]
[1748676512008,11.75340625,154.72,154.69,18.64964886]
[1748676512202,157.65340625,154.73,154.69,18.64964886]
[1748676512891,164.11630163,154.73,154.69,18.64964886]
[1748676513697,157.65340625,154.73,154.69,18.64964886]
[1748676514892,164.11665649,154.73,154.69,18.64964886]
[1748676515097,11.75340625,154.7,154.62,6.46746863]
[1748676515298,11.75340625,154.67,154.62,28.26087488]
[1748676515499,11.75340625,154.66,154.62,10.04]
[1748676515927,11.75340625,154.66,154.63,18.64964886]
[1748676516901,11.75340625,154.67,154.63,30.40305511]
[1748676517104,11.75340625,154.67,154.63,36.8699332]
[1748676517300,11.75340625,154.68,154.63,36.8699332]
[1748676517603,11.75340625,154.67,154.63,25.11652695]
[1748676518207,152.36464629,154.69,154.63,36.8699332]
[1748676518208,11.75340625,154.68,154.63,36.8699332]
[1748676519625,11.75340625,154.67,154.63,36.8699332]
[1748676522030,2.99330773,154.67,154.63,36.8699332]
[1748676523829,2.99330773,154.67,154.63,25.11652695]
[1748676524032,152.3647139,154.69,154.65,11.75340625]
[1748676524033,145.9,154.69,154.65,11.75340625]
[1748676525904,145.9,154.69,154.64,6.46640293]
[1748676526141,145.9,154.69,154.65,11.75340625]
[1748676526704,145.9,154.69,154.67,18.64964886]
[1748676527713,145.9,154.69,154.65,18.21931884]
[1748676528018,145.9,154.69,154.66,18.64964886]
[1748676528331,157.65340625,154.69,154.66,18.64964886]
[1748676531425,164.11803003,154.69,154.63,6.46705037]
[1748676531730,11.75340625,154.68,154.65,18.64964886]
[1748676532924,164.11803003,154.69,154.65,18.64964886]
[1748676534414,145.9,154.69,154.65,36.86924003]
[1748676534613,145.9,154.69,154.67,11.75340625]
[1748676535537,145.9,154.69,154.65,25.11583378]
[1748676535538,145.9,154.69,154.66,18.21918405]
[1748676537922,145.9,154.69,154.66,18.38658259]
[1748676538230,145.9,154.69,154.67,18.64964886]
[1748676539423,164.28658259,154.69,154.65,37.03623145]
[1748676540242,164.28658259,154.69,154.65,25.11571593]
[1748676540625,170.75122612,154.69,154.65,18.64964886]
[1748676541133,18.38658259,154.67,154.63,18.64964886]
[1748676541533,18.38658259,154.66,154.63,18.64964886]
[1748676541939,18.38658259,154.67,154.63,18.64964886]
[1748676543355,18.38658259,154.67,154.63,25.11652749]
[1748676544939,164.28658259,154.68,154.63,43.50311008]
[1748676546544,145.9,154.67,154.63,43.50311008]
[1748676554028,145.9,154.67,154.65,18.64964886]
[1748676554466,203.48658259,154.67,154.62,16.50729859]
[1748676554631,18.38658259,154.64,154.6,18.64964886]
[1748676554953,18.38658259,154.64,154.59,18.64964886]
[1748676555247,18.38658259,154.64,154.59,25.11837258]
[1748676556224,18.38658259,154.63,154.59,25.11837258]
[1748676556827,18.38658259,154.64,154.59,25.11837258]
[1748676561842,18.38658259,154.64,154.59,43.50495517]
[1748676563463,18.38658259,154.64,154.61,6.46788694]
[1748676563961,11.7765181,154.64,154.61,6.46788694]
[1748676564157,39.2,154.65,154.62,18.64964886]
[1748676564367,11.7765181,154.65,154.62,18.64964886]
[1748676564560,196.8765181,154.66,154.62,18.64964886]
[1748676565237,157.6765181,154.66,154.62,18.64964886]
[1748676565765,157.6765181,154.66,154.62,25.1167117]
[1748676567768,11.7765181,154.65,154.62,18.64964886]
[1748676569066,11.7765181,154.65,154.62,25.1170689]
[1748676569263,145.9,154.66,154.64,18.64964886]
[1748676571141,157.6765181,154.66,154.62,25.1170689]
[1748676571483,157.6765181,154.66,154.63,18.64964886]
[1748676571781,157.6765181,154.66,154.63,15.7514629]
[1748676571953,164.29724303,154.66,154.63,15.7514629]
[1748676572338,145.9,154.66,154.63,15.7514629]
[1748676573364,145.9,154.66,154.61,34.90499521]
[1748676573365,145.9,154.65,154.61,34.90499521]
[1748676573743,145.9,154.65,154.62,18.64964886]
[1748676576955,145.9,154.65,154.62,43.51434861]
[1748676578047,145.9,154.7,154.64,37.04689189]
[1748676578255,145.9,154.7,154.66,37.04689189]
[1748676578580,145.9,154.7,154.67,18.39724303]
[1748676578951,145.9,154.7,154.67,24.86238998]
[1748676580766,145.9,154.7,154.67,6.46514695]
[1748676581481,145.9,154.7,154.68,18.64964886]
[1748676582779,145.9,154.7,154.68,25.11450484]
[1748676584475,145.9,154.7,154.67,24.86244533]
[1748676584655,145.9,154.7,154.67,6.4652023]
[1748676587679,164.29724303,154.7,154.67,6.4652023]
[1748676588477,145.9,154.7,154.67,6.4652023]
[1748676591489,145.9,154.7,154.67,24.86244533]
[1748676593483,145.9,154.7,154.68,37.04689189]
[1748676593677,145.9,154.7,154.67,6.4652023]
[1748676593678,145.9,154.7,154.69,37.04689189]
[1748676593862,145.9,154.7,154.69,43.51143387]
[1748676600401,145.9,154.7,154.69,37.04689189]
[1748676600605,170.76139058,154.7,154.66,10.04]
[1748676600996,39.18,154.69,154.66,18.64964886]
[1748676601199,203.47724303,154.7,154.66,18.64964886]
[1748676601620,203.47724303,154.7,154.66,18.39724303]
[1748676601797,185.08,154.7,154.66,18.64964886]
[1748676601999,145.9,154.7,154.68,18.64964886]
[1748676603230,145.9,154.7,154.68,25.11458091]
[1748676606127,145.9,154.7,154.68,18.64964886]
[1748676606627,145.9,154.7,154.68,25.11456926]
[1748676607622,164.29724303,154.7,154.65,18.39724303]
[1748676607810,18.39724303,154.69,154.64,18.39724303]
[1748676608007,18.39724303,154.68,154.64,24.86374336]
[1748676608209,18.39724303,154.69,154.64,24.86374336]
[1748676608599,145.9,154.68,154.64,24.86374336]
[1748676608795,145.9,154.68,154.65,18.64964886]
[1748676609426,164.29724303,154.68,154.65,18.64964886]
[1748676609802,164.29724303,154.68,154.64,18.39724303]
[1748676610716,164.29724303,154.68,154.64,24.86383921]
[1748676612904,170.76233466,154.68,154.64,18.39724303]
[1748676613104,164.29724303,154.68,154.64,24.86385628]
[1748676613414,145.9,154.68,154.64,24.86385628]
[1748676614426,145.9,154.67,154.64,24.86385628]
[1748676618934,145.9,154.67,154.65,25.11573768]
[1748676619237,145.9,154.67,154.65,43.51298071]
[1748676622439,145.9,154.67,154.65,18.64964886]
[1748676622941,145.9,154.67,154.64,18.39724303]
[1748676625960,145.9,154.67,154.64,30.42021048]
[1748676626345,145.9,154.66,154.64,30.42021048]
[1748676627556,145.9,154.66,154.64,36.88676392]
[1748676627852,145.9,154.66,154.65,11.77056162]
[1748676629122,145.9,154.66,154.65,18.23677565]
[1748676630637,145.9,154.66,154.65,6.46621403]
[1748676632180,145.9,154.66,154.65,18.23677565]
[1748676633469,145.9,154.66,154.65,37.02858608]
[1748676634474,145.9,154.66,154.65,37.17074765]
[1748676634763,65.45081052,154.74,154.67,0.28432314]
[1748676634971,65.45081052,154.74,154.71,11.77056162]
[1748676635150,83.68394618,154.74,154.7,18.64964886]
[1748676636074,90.29139419,154.74,154.7,18.64964886]
[1748676638073,65.45081052,154.73,154.7,18.64964886]
[1748676638650,65.45081052,154.73,154.7,25.11368407]
[1748676638860,65.45081052,154.73,154.7,43.4916937]
[1748676639778,65.45081052,154.73,154.7,25.11368407]
[1748676640175,65.45081052,154.73,154.7,43.4916937]
[1748676642201,83.82882015,154.73,154.7,18.64964886]
[1748676643505,65.45081052,154.73,154.7,18.64964886]
[1748676644700,65.45081052,154.73,154.7,25.11373608]
[1748676646996,18.37800963,154.71,154.67,18.64964886]
[1748676647303,71.91380476,154.73,154.65,10.02]
[1748676647304,18.37800963,154.69,154.65,10.02]
[1748676647486,18.37800963,154.67,154.65,10.02]
[1748676647910,18.37800963,154.68,154.65,10.02]
[1748676648409,18.37800963,154.68,154.65,18.64964886]
[1748676649205,83.82882015,154.68,154.65,18.64964886]
[1748676649883,18.37800963,154.67,154.62,18.37800963]
[1748676650084,18.37800963,154.67,154.63,18.64964886]
[1748676651002,18.37800963,154.65,154.63,18.64964886]
[1748676651205,18.37800963,154.64,154.62,18.64964886]
[1748676652309,18.37800963,154.63,154.61,10.02]
[1748676652509,18.37800963,154.63,154.59,18.64964886]
[1748676653597,18.37800963,154.63,154.59,18.14964886]
[1748676653802,18.37800963,154.63,154.59,24.61829533]
[1748676654827,18.37800963,154.63,154.59,42.99630496]
[1748676655612,18.37800963,154.64,154.59,42.99630496]
[1748676655821,65.45081052,154.63,154.59,42.99630496]
[1748676656603,65.45081052,154.63,154.62,18.64964886]
[1748676657024,65.45081052,154.63,154.59,6.46864647]
[1748676657221,65.45081052,154.63,154.61,18.64964886]
[1748676657421,65.45081052,154.63,154.61,37.02765849]
[1748676657610,65.45081052,154.63,154.61,43.49552608]
[1748676659520,65.45081052,154.63,154.61,25.11751645]
[1748676659820,65.45081052,154.63,154.61,43.49552608]
[1748676660523,65.45081052,154.63,154.61,25.11751645]
[1748676661817,65.45081052,154.63,154.61,18.64964886]
[1748676662128,65.45081052,154.63,154.6,18.64964886]
[1748676663338,65.45081052,154.63,154.6,37.02765849]
[1748676663826,65.45081052,154.63,154.61,6.46788694]
[1748676668112,65.45081052,154.63,154.62,18.64964886]
[1748676671859,65.45081052,154.63,154.62,25.11711749]
[1748676672060,65.45081052,154.63,154.62,43.49512712]
[1748676673586,65.45081052,154.63,154.62,25.11711749]
[1748676673802,65.45081052,154.63,154.6,37.02765849]
[1748676674004,65.45081052,154.63,154.6,18.64964886]
[1748676676173,65.45081052,154.63,154.6,25.11791884]
[1748676676683,65.45081052,154.63,154.6,43.49592847]
[1748676678187,65.45081052,154.63,154.62,18.64964886]
[1748676679482,65.45081052,154.67,154.62,76.36982006]
[1748676679658,65.45081052,154.67,154.64,37.02765849]
[1748676681287,65.45081052,154.67,154.65,6.46621403]
[1748676681590,65.45081052,154.67,154.65,24.84422366]
[1748676682286,65.45081052,154.67,154.66,18.64964886]
[1748676682492,65.45081052,154.67,154.66,37.02765849]
[1748676683373,65.45081052,154.67,154.66,43.49345442]
[1748676683990,91.30187941,154.73,154.67,0.14216157]
[1748676684181,91.30187941,154.73,154.7,18.37800963]
[1748676684991,81.62596801,154.73,154.71,18.37800963]
[1748676685185,81.62596801,154.73,154.72,6.46328852]
[1748676686373,81.62596801,154.73,154.72,25.11293738]
[1748676686690,65.45081052,154.73,154.72,25.11293738]
[1748676690799,65.45081052,154.73,154.69,10.02]
[1748676690999,18.37800963,154.72,154.7,18.64964886]
[1748676691395,83.82882015,154.73,154.7,18.64964886]
[1748676691576,18.37800963,154.72,154.7,18.64964886]
[1748676692493,18.37800963,154.72,154.69,16.48448446]
[1748676696116,18.37800963,154.7,154.66,18.37800963]
[1748676696285,18.37800963,154.7,154.66,43.49333001]
[1748676696483,83.82882015,154.71,154.66,43.49333001]
[1748676697193,18.37800963,154.7,154.66,43.49333001]
[1748676698092,83.82882015,154.71,154.66,43.49333001]
[1748676698292,83.82882015,154.71,154.67,18.37800963]
[1748676699010,83.82882015,154.71,154.68,6.46495991]
[1748676699216,65.45081052,154.71,154.68,6.46495991]
[1748676699388,83.82882015,154.71,154.68,6.46495991]
[1748676700316,65.45081052,154.7,154.68,6.46495991]
[1748676703615,65.45081052,154.7,154.69,18.64964886]
[1748676703801,65.45081052,154.7,154.69,37.02765849]
[1748676704202,65.45081052,154.7,154.69,37.16982006]
[1748676704718,83.82882015,154.75,154.69,37.16982006]
[1748676705010,83.82882015,154.75,154.71,18.64964886]
[1748676705228,65.45081052,154.75,154.71,37.02765849]
[1748676705421,65.45081052,154.75,154.73,18.37800963]
[1748676705623,65.45081052,154.75,154.74,43.49011163]
[1748676705786,70.08557852,154.78,154.75,18.64964886]
[1748676705987,70.08557852,154.78,154.77,18.64964886]
[1748676707089,70.08557852,154.78,154.77,18.37800963]
[1748676707819,70.08557852,154.78,154.77,24.83921012]
[1748676708696,70.08557852,154.78,154.77,43.63102055]
[1748676708899,70.08557852,154.78,154.77,43.77318212]
[1748676711587,4.634768,154.78,154.77,43.77318212]
[1748676713115,4.634768,154.78,154.77,69.77318212]
[1748676715105,65.45081052,154.84,154.78,18.933972]
[1748676715420,91.45081052,154.88,154.84,18.64964886]
[1748676715912,116.28545761,154.88,154.83,37.02765849]
[1748676716296,18.37800963,154.87,154.83,18.64964886]
[1748676716498,17.50365326,154.87,154.83,18.64964886]
[1748676716819,18.37800963,154.87,154.83,37.02765849]
[1748676717004,97.90744798,154.88,154.83,37.02765849]
[1748676717203,18.37800963,154.87,154.83,37.02765849]
[1748676718014,116.28545761,154.88,154.83,37.02765849]
[1748676718223,116.28545761,154.88,154.83,43.48621965]
[1748676718413,65.45081052,154.87,154.83,43.48621965]
[1748676718924,65.45081052,154.87,154.84,18.37800963]
[1748676719323,65.45081052,154.86,154.84,18.37800963]
[1748676719510,65.45081052,154.86,154.85,37.02765849]
[1748676720009,26.0,154.9,154.85,43.6276825]
[1748676720215,26.0,154.9,154.87,18.64964886]
[1748676721833,18.37800963,154.89,154.85,43.62753291]
[1748676722038,18.37800963,154.87,154.83,37.02765849]
[1748676722412,18.37800963,154.87,154.83,18.64964886]
[1748676722713,18.37800963,154.85,154.82,10.02]
[1748676724030,83.82882015,154.86,154.82,10.02]
[1748676724534,83.82882015,154.86,154.83,18.64964886]
[1748676725130,65.45081052,154.86,154.84,24.83625713]
[1748676728633,65.45081052,154.86,154.84,6.4582475]
[1748676730235,65.45081052,154.86,154.83,37.02765849]
[1748676730236,18.37800963,154.85,154.83,18.64964886]
[1748676730531,18.37800963,154.85,154.79,6.46010041]
[1748676730532,18.37800963,154.84,154.79,6.46010041]
[1748676730737,18.37800963,154.83,154.8,18.64964886]
[1748676731131,83.82882015,154.84,154.8,18.64964886]
[1748676731314,65.45081052,154.84,154.82,18.64964886]
[1748676732141,18.37800963,154.83,154.8,18.64964886]
[1748676733926,65.45081052,154.84,154.8,43.48748903]
[1748676734124,65.45081052,154.84,154.82,18.64964886]
[1748676736627,65.45081052,154.84,154.82,25.10871441]
[1748676737224,65.45081052,154.84,154.82,18.64964886]
[1748676738047,65.45081052,154.84,154.83,18.37800963]
[1748676739859,65.45081052,154.84,154.83,24.83670626]
[1748676742622,65.45081052,154.84,154.83,43.48635512]
[1748676745929,65.45081052,154.84,154.83,82.72635512]
[1748676747556,18.37800963,154.89,154.83,82.72635512]
[1748676747557,65.45081052,154.88,154.83,82.72635512]
[1748676747757,65.45081052,154.88,154.85,18.64964886]
[1748676750632,83.82882015,154.88,154.85,18.64964886]
[1748676750837,83.82882015,154.88,154.83,24.83654187]
[1748676752130,18.37800963,154.86,154.82,10.06]
[1748676752331,18.37800963,154.85,154.82,10.06]
[1748676753159,59.27160963,154.86,154.82,16.51899683]
[1748676753540,65.45081052,154.85,154.82,10.06]
[1748676754755,65.45081052,154.85,154.83,18.64964886]
[1748676755455,65.45081052,154.85,154.83,37.02765849]
[1748676757158,65.45081052,154.85,154.84,6.45827951]
[1748676757666,65.45081052,154.85,154.84,24.83628914]
[1748676759066,65.45081052,154.85,154.84,43.77026114]
[1748676759568,85.48242015,154.9,154.85,18.64964886]
[1748676759874,85.48242015,154.9,154.85,37.02765849]
[1748676761047,85.48242015,154.9,154.87,18.64964886]
[1748676762868,67.10441052,154.9,154.87,25.10662258]
[1748676763896,65.45081052,154.9,154.88,25.1061932]
[1748676764058,65.45081052,154.9,154.88,43.48420283]
[1748676764389,65.45081052,154.9,154.89,37.02765849]
[1748676764569,131.06496502,154.95,154.89,37.02765849]
[1748676764758,65.45081052,154.94,154.91,18.64964886]
[1748676764965,83.82882015,154.94,154.91,18.64964886]
[1748676765185,83.82882015,154.94,154.89,37.02765849]
[1748676765482,65.45081052,154.94,154.91,37.02765849]
[1748676768756,71.90493307,154.94,154.91,37.02765849]
[1748676768961,18.37800963,154.93,154.91,18.64964886]
[1748676769164,18.37800963,154.93,154.89,18.37800963]
[1748676769371,18.37800963,154.93,154.9,18.64964886]
[1748676769571,90.2829427,154.94,154.9,18.64964886]
[1748676771388,65.45081052,154.93,154.9,18.64964886]
[1748676772660,65.45081052,154.93,154.9,18.37800963]
[1748676774893,65.45081052,154.93,154.9,18.64964886]
[1748676776173,65.45081052,154.93,154.9,25.10539825]
[1748676776895,65.45081052,154.93,154.9,18.64964886]
[1748676778695,18.37800963,154.91,154.87,10.06]
[1748676778997,18.37800963,154.89,154.87,10.06]
[1748676779169,83.82882015,154.9,154.87,10.06]
[1748676780593,90.28472233,154.9,154.87,10.06]
[1748676780799,18.37800963,154.89,154.86,18.64964886]
[1748676781089,18.37800963,154.88,154.85,18.64964886]
[1748676781409,18.37800963,154.89,154.85,18.64964886]
[1748676781690,18.37800963,154.88,154.84,18.64964886]
[1748676781876,18.37800963,154.88,154.84,37.02765849]
[1748676782084,18.37800963,154.89,154.84,37.02765849]
[1748676782283,18.37800963,154.89,154.85,18.37800963]
[1748676782694,18.37800963,154.89,154.86,18.64964886]
[1748676783587,24.83423117,154.89,154.84,43.48578293]
[1748676784290,18.37800963,154.89,154.84,43.48578293]
[1748676784498,18.37800963,154.89,154.85,18.37800963]
[1748676785793,65.45081052,154.9,154.86,18.37800963]
[1748676785999,65.45081052,154.9,154.88,18.37800963]
[1748676786170,65.45081052,154.9,154.89,37.02765849]
[1748676786364,65.45081052,154.9,154.89,18.64964886]
[1748676787007,83.82882015,154.9,154.86,18.37800963]
[1748676787212,83.82882015,154.9,154.87,18.64964886]
[1748676788790,65.45081052,154.9,154.89,18.37800963]
[1748676788993,83.82882015,154.95,154.89,18.66233277]
[1748676789310,65.45081052,154.95,154.92,18.64964886]
[1748676789899,65.45081052,154.95,154.92,37.02765849]
[1748676790683,65.45081052,154.95,154.93,18.37800963]
[1748676791187,65.45081052,154.95,154.93,24.83251509]
[1748676791606,65.45081052,154.95,154.93,6.45450546]
[1748676792801,65.45081052,154.95,154.94,25.10376012]
[1748676792985,65.45081052,154.95,154.94,18.64964886]
[1748676793708,65.45081052,154.95,154.93,18.64964886]
[1748676794090,65.45081052,154.95,154.93,37.02765849]
[1748676794816,65.45081052,154.95,154.93,43.48201103]
[1748676794983,65.45081052,154.95,154.93,37.02765849]
[1748676795191,65.45081052,154.95,154.93,18.64964886]
[1748676795388,65.45081052,154.95,154.91,6.45524652]
[1748676795698,83.82882015,154.95,154.91,18.64964886]
[1748676797290,83.82882015,154.95,154.91,25.1049853]
[1748676797519,83.82882015,154.95,154.91,43.48299493]
[1748676797713,65.45081052,154.95,154.91,43.48299493]
[1748676799024,83.82882015,154.95,154.91,43.48299493]
[1748676803030,65.45081052,154.95,154.91,43.48299493]
[1748676803407,65.45081052,154.95,154.92,18.37800963]
[1748676803706,65.45081052,154.95,154.93,18.37800963]
[1748676803908,65.45081052,154.95,154.92,37.02765849]
[1748676805029,65.45081052,154.95,154.93,6.45452785]
[1748676805410,65.45081052,154.95,154.94,18.64964886]
[1748676806105,65.45081052,154.95,154.92,24.83279061]
[1748676808431,65.45081052,154.95,154.9,49.32]
[1748676808610,18.37800963,154.94,154.91,18.64964886]
[1748676809029,83.82882015,154.95,154.91,18.64964886]
[1748676809218,83.82882015,154.95,154.91,37.02765849]
[1748676809905,65.45081052,154.95,154.91,37.02765849]
[1748676810106,65.45081052,154.95,154.91,43.48286796]
[1748676811546,65.45081052,154.95,154.92,18.37800963]
[1748676813224,65.45081052,154.95,154.93,18.64964886]
[1748676821507,71.90455311,154.95,154.91,18.37800963]
[1748676821830,71.90455311,154.95,154.92,18.64964886]
[1748676822042,65.45081052,154.95,154.92,18.64964886]
[1748676826441,65.45081052,154.95,154.92,25.10459263]
[1748676826646,65.45081052,154.95,154.92,43.48260226]
[1748676828648,65.45081052,154.95,154.94,18.64964886]
[1748676828954,65.45081052,154.95,154.94,37.02765849]
[1748676829634,13.1629298,155.0,154.94,37.31198163]
[1748676829836,13.1629298,155.0,154.97,18.64964886]
[1748676830752,83.82882015,155.01,154.97,18.64964886]
[1748676831748,83.82882015,155.01,154.97,25.10247816]
[1748676832752,83.82882015,155.01,154.97,18.64964886]
[1748676833248,65.45081052,155.0,154.97,18.64964886]
[1748676833948,65.45081052,155.0,154.97,25.10244795]
[1748676834729,83.82882015,155.0,154.96,25.10282856]
[1748676834931,83.82882015,155.0,154.96,43.48083819]
[1748676835146,65.45081052,155.0,154.97,18.37800963]
[1748676836666,65.45081052,155.0,154.98,18.64964886]
[1748676841648,65.45081052,155.0,154.96,24.83114403]
[1748676843245,65.45081052,155.0,154.98,18.64964886]
[1748676845045,65.45081052,155.0,154.98,37.02765849]
[1748676845361,65.45081052,155.0,154.98,25.10200507]
[1748676845662,65.45081052,155.0,154.98,18.64964886]
[1748676846842,65.45081052,155.0,154.98,6.45239252]
[1748676847957,65.45081052,155.0,154.97,43.48038566]
[1748676848158,65.45081052,155.0,154.97,25.10237603]
[1748676850580,65.45081052,155.0,154.97,43.48038566]
[1748676852873,65.45081052,155.0,154.97,82.60038566]
[1748676853265,65.45081052,155.0,154.98,18.37800963]
[1748676853570,65.45081052,155.0,154.99,37.02765849]
[1748676854072,26.0,155.04,154.99,30.36587402]
[1748676854249,65.45081052,155.05,155.03,18.64964886]
[1748676854868,65.45081052,155.05,155.01,11.71622516]
[1748676855069,65.45081052,155.05,155.02,18.64964886]
[1748676855652,71.90044643,155.05,155.02,18.64964886]
[1748676855959,71.90044643,155.05,155.01,18.304114]
[1748676855960,65.45081052,155.05,155.01,18.304114]
[1748676856288,71.90035489,155.05,155.02,18.64964886]
[1748676859180,71.90035489,155.05,155.02,18.304114]
[1748676861086,71.90035489,155.05,155.01,36.95376286]
[1748676867778,65.45081052,155.05,155.01,43.40491004]
[1748676868097,71.90043124,155.05,155.01,36.95376286]
[1748676873968,18.304114,155.02,154.95,28.324114]
[1748676874166,18.304114,155.0,154.96,18.64964886]
[1748676874680,18.304114,155.0,154.96,36.95376286]
[1748676875075,24.75600317,155.0,154.96,36.95376286]
[1748676875996,18.17537061,155.0,154.96,18.64964886]
[1748676876691,18.17537061,155.0,154.96,30.3731303]
[1748676877893,24.76899374,155.0,154.96,36.96675343]
[1748676880482,24.76899374,155.0,154.96,18.64964886]
[1748676881290,24.76899374,155.0,154.96,36.96675343]
[1748676881481,6.45188917,155.0,154.96,36.96675343]
[1748676882121,18.31710457,155.0,154.96,43.41994434]
[1748676886011,73.13371052,155.04,154.97,18.60142771]
[1748676886212,83.76791509,155.03,154.99,18.31710457]
[1748676886415,83.76791509,155.03,155.0,18.64964886]
[1748676887537,65.45081052,155.03,155.0,25.10110062]
[1748676887704,65.45081052,155.03,155.0,43.41820519]
[1748676889331,65.45081052,155.03,155.0,25.10110062]
[1748676897745,83.76791509,155.03,155.0,18.64964886]
[1748676897902,18.31710457,155.01,154.98,10.02]
[1748676898223,18.31710457,155.0,154.98,10.02]
[1748676899930,11.72273491,155.0,154.98,10.02]
[1748676900595,6.45078054,155.02,154.98,10.02]
[1748676900799,11.72273491,155.0,154.98,10.02]
[1748676902812,65.45081052,155.03,154.99,30.37238377]
[1748676903115,65.45081052,155.03,155.01,30.37238377]
[1748676903732,65.45081052,155.03,155.01,36.82317509]
[1748676905926,65.45081052,155.03,155.01,43.40513561]
[1748676907136,65.45081052,155.03,155.01,18.64964886]
[1748676909146,65.45081052,155.03,155.01,25.10071587]
[1748676911943,65.45081052,155.03,155.01,43.4054113]
[1748676912122,65.45081052,155.03,155.02,18.30469543]
[1748676914134,65.45081052,155.03,155.02,24.75547597]
[1748676915838,65.45081052,155.03,155.02,6.45078054]
[1748676918515,65.45081052,155.03,155.02,43.68944797]
[1748676919037,65.45081052,155.03,155.02,25.24259097]
[1748676919234,65.45081052,155.03,155.02,18.64964886]
[1748676919437,65.45081052,155.03,155.02,36.95434429]
[1748676920527,65.45081052,155.03,155.02,43.40512483]
[1748676922349,65.45081052,155.03,155.02,82.78944797]
[1748676923650,65.45081052,155.03,155.02,64.48475254]
[1748676923841,65.45081052,155.03,155.02,82.78944797]
[1748676924226,26.0,155.09,155.03,18.933972]
[1748676924227,44.30469543,155.09,155.03,18.933972]
[1748676924428,44.30469543,155.09,155.04,18.30469543]
[1748676925845,44.30469543,155.09,155.06,18.64964886]
[1748676927346,50.7526042,155.09,155.06,18.64964886]
[1748676927547,18.30469543,155.08,155.06,18.64964886]
[1748676928038,65.45081052,155.1,155.06,18.64964886]
[1748676928226,11.71029899,155.09,155.06,18.64964886]
[1748676932751,71.89827651,155.1,155.06,18.64964886]
[1748676933055,11.71029899,155.09,155.06,18.64964886]
[1748676936941,77.16110951,155.1,155.06,25.09870478]
[1748676937463,65.45081052,155.1,155.06,36.80900377]
[1748676938335,65.45081052,155.1,155.08,18.64964886]
[1748676943433,65.45081052,155.1,155.08,25.09779865]
[1748676944949,65.45081052,155.1,155.08,18.64964886]
[1748676945554,65.45081052,155.1,155.08,25.09792629]
[1748676946772,65.45081052,155.1,155.08,36.80822528]
[1748676947754,65.45081052,155.1,155.08,25.09792629]
[1748676948760,65.45081052,155.1,155.08,36.80822528]
[1748676960367,65.45081052,155.1,155.08,25.09792629]
[1748676960568,65.45081052,155.1,155.08,18.64964886]
[1748676961174,65.45081052,155.1,155.08,25.09778556]
[1748676963573,65.45081052,155.1,155.08,18.64964886]
[1748676964254,65.45081052,155.1,155.08,25.09792207]
[1748676964455,65.45081052,155.1,155.08,18.64964886]
[1748676964961,65.45081052,155.1,155.06,21.71029899]
[1748676965277,77.16110951,155.1,155.07,18.64964886]
[1748676970173,11.71029899,155.09,155.07,18.64964886]
[1748676970686,11.71029899,155.08,155.06,10.0]